[Event "POL-chT Ekstraliga 2018"]
[Site "Gorzow"]
[Date "2018.06.08"]
[Round "1"]
[White "Nguyen, Piotr"]
[Black "Tomaszewski, Roman"]
[Result "1-0"]
[ECO "A37"]
[WhiteElo "2397"]
[BlackElo "2265"]
[Annotator "NA"]
[PlyCount "65"]
[EventDate "2018.06.08"]
[EventType "team-tourn"]
[EventCountry "POL"]
[SourceTitle "playchess.com"]
[Source "ChessBase"]
[SourceQuality "1"]
[TimeControl "40/5400+30:1800+30"]

1. c4 {[%emt 0:00:00]} c5 {[%emt 0:00:08]} 2. g3 {[%emt 0:01:36]} Nc6 {[%emt 0:00:58]} 3. Bg2 {[%emt 0:00:11]} g6 {[%emt 0:00:08]} 4. Nc3 {[%emt 0:00:13]} Bg7 {[%emt 0:00:07]} 5. Nf3 {[%emt 0:03:12]} e6 {[%emt 0:00:09]} 6. d3 {[%emt 0:02:13]} Nge7 {[%emt 0:17:48]} 7. h4 {[%emt 0:00:11]} h6 {[%emt 0:00:33]} 8. Bd2 {[%emt 0:02:21]} d5 {[%emt 0:01:31]} 9. a3 {[%emt 0:04:25]} b6 {[%emt 0:09:22]} 10. Rb1 {[%emt 0:02:02]} Bb7 {[%emt 0:00:30]} 11. O-O {[%emt 0:03:42]} O-O {[%emt 0:19:07]} 12. Qc1 {[%emt 0:11:03]} Kh7 {[%emt 0:09:36]} 13. b4 {[%emt 0:00:55]} cxb4 {[%emt 0:11:02]} 14. axb4 {[%emt 0:00:07]} Qd7 {[%emt 0:09:54]} 15. b5 {[%emt 0:14:03]} Nd8 {[%emt 0:02:38]} 16. c5 {[%emt 0:00:29]} bxc5 {[%emt 0:00:19]} 17. Na4 {[%emt 0:00:13]} c4 {[%emt 0:03:16]} 18. dxc4 {[%emt 0:02:37]} dxc4 {[%emt 0:00:06]} 19. Nc5 {[%emt 0:05:18]} Qc7 {[%emt 0:00:44]} 20. Qxc4 {[%emt 0:00:54]} Rc8 {[%emt 0:07:09]} 21. Rfc1 {[%emt 0:05:06]} Re8 {[%emt 0:03:33]} 22. Qa4 {[%emt 0:06:31]} Qb6 {[%emt 0:00:54]} 23. Nxb7 {[%emt 0:04:47]} Nxb7 {[%emt 0:00:46]} 24. Be3 {[%emt 0:00:10]} Qd6 {[%emt 0:01:18]} 25. Qxa7 {[%emt 0:01:08]} Rb8 {[%emt 0:00:02]} 26. Bf4 {[%emt 0:09:13]} e5 {[%emt 0:00:09]} 27. Nxe5 {[%emt 0:05:32]} Bxe5 {[%emt 0:00:02]} 28. Bxe5 {[%emt 0:00:05]} Qxe5 {[%emt 0:00:07]} 29. Bxb7 {[%emt 0:00:05]} Nf5 {[%emt 0:00:20]} 30. Bf3 {[%emt 0:02:17]} Kg7 {[%emt 0:00:26]} 31. Rc7 {[%emt 0:01:17]} Nxg3 {[%emt 0:00:30]} 32. Rxf7+ {[%emt 0:01:32]} Kg8 {[%emt 0:00:03]} 33. fxg3 {[%emt 0:02:10]} 1-0

[Event "POL-chT Ekstraliga 2018"]
[Site "Gorzow"]
[Date "2018.06.08"]
[Round "1"]
[White "Luch, Michal"]
[Black "Mikrut, Dariusz"]
[Result "*"]
[WhiteElo "2395"]
[BlackElo "2379"]
[Annotator "NA"]
[PlyCount "96"]
[EventDate "2018.06.08"]
[EventType "team-tourn"]
[EventCountry "POL"]
[SourceTitle "playchess.com"]
[Source "ChessBase"]
[SourceQuality "1"]
[TimeControl "40/5400+30:1800+30"]

1. c4 {[%emt 0:00:00]} Nf6 {[%emt 0:03:20]} 2. Nc3 {[%emt 0:00:30]} e6 {[%emt 0:00:12]} 3. e4 {[%emt 0:01:07]} e5 {[%emt 0:03:45]} 4. f4 {[%emt 0:13:04]} d6 {[%emt 0:05:04]} 5. d3 {[%emt 0:07:55]} Be7 {[%emt 0:01:18]} 6. Nf3 {[%emt 0:01:49]} Nbd7 {[%emt 0:01:22]} 7. Be2 {[%emt 0:03:17]} c6 {[%emt 0:00:52]} 8. O-O {[%emt 0:01:35]} a6 {[%emt 0:00:55]} 9. d4 {[%emt 0:01:53]} O-O {[%emt 0:02:14]} 10. Kh1 {[%emt 0:08:59]} exd4 {[%emt 0:05:18]} 11. Nxd4 {[%emt 0:00:37]} Nc5 {[%emt 0:00:13]} 12. Bf3 {[%emt 0:00:24]} a5 {[%emt 0:00:17]} 13. b3 {[%emt 0:04:25]} Re8 {[%emt 0:04:27]} 14. Ba3 {[%emt 0:14:33]} Qb6 {[%emt 0:01:48]} 15. Qd2 {[%emt 0:16:47]} Bf8 {[%emt 0:08:06]} 16. Rae1 {[%emt 0:00:17]} a4 {[%emt 0:01:18]} 17. b4 {[%emt 0:01:08]} Ne6 {[%emt 0:05:30]} 18. Nf5 {[%emt 0:06:00]} Qc7 {[%emt 0:04:42]} 19. g3 {[%emt 0:09:58]} g6 {[%emt 0:01:44]} 20. Ne3 {[%emt 0:00:02]} Qb6 {[%emt 0:02:37]} 21. Qf2 {[%emt 0:02:58]} Bg7 {[%emt 0:04:33]} 22. c5 {[%emt 0:01:00]} dxc5 {[%emt 0:04:04]} 23. bxc5 {[%emt 0:00:02]} Qa5 {[%emt 0:01:39]} 24. Rc1 {[%emt 0:00:40]} Qa6 {[%emt 0:06:00]} 25. e5 {[%emt 0:00:37]} Nd7 {[%emt 0:00:25]} 26. Ne4 {[%emt 0:00:37]} Nd4 {[%emt 0:03:46]} 27. Nd6 {[%emt 0:01:02]} Rd8 {[%emt 0:00:55]} 28. Be4 {[%emt 0:01:37]} Nf8 {[%emt 0:00:36]} 29. Nec4 {[%emt 0:00:27]} Nb5 {[%emt 0:01:22]} 30. Nxb5 {[%emt 0:00:38]} Qxb5 {[%emt 0:02:30]} 31. Nd6 {[%emt 0:00:02]} Qa5 {[%emt 0:00:17]} 32. Rb1 {[%emt 0:00:52]} Qc7 {[%emt 0:01:30]} 33. Rfd1 {[%emt 0:00:35]} f6 {[%emt 0:01:00]} 34. exf6 {[%emt 0:00:54]} Bxf6 {[%emt 0:00:05]} 35. Qc2 {[%emt 0:00:30]} Qe7 {[%emt 0:01:34]} 36. Re1 {[%emt 0:00:22]} Qg7 {[%emt 0:00:31]} 37. Bf3 {[%emt 0:00:15]} h5 {[%emt 0:04:53]} 38. Qc4+ {[%emt 0:00:54]} Kh7 {[%emt 0:00:43]} 39. Ne8 {[%emt 0:00:36]} Rxe8 {[%emt 0:02:00]} 40. Rxe8 {[%emt 0:00:00]} Bg4 {[%emt 0:00:06]} 41. Re3 {[%emt 0:05:49]} Bd4 {[%emt 0:01:53]} 42. Rd3 {[%emt 0:06:13]} Bf5 {[%emt 0:02:15]} 43. Qxd4 {[%emt 0:01:08]} Qxd4 {[%emt 0:00:22]} 44. Rxb7+ {[%emt 0:00:16]} Qg7 {[%emt 0:00:38]} 45. Rxg7+ {[%emt 0:02:50]} Kxg7 {[%emt 0:00:04]} 46. Rd4 {[%emt 0:02:38]} Ne6 {[%emt 0:03:39]} 47. Rd7+ {[%emt 0:02:01]} Kf8 {[%emt 0:00:19]} 48. Bxc6 {[%emt 0:00:48]} Rb8 {[%emt 0:01:08]} *

[Event "POL-chT Ekstraliga 2018"]
[Site "Gorzow"]
[Date "2018.06.08"]
[Round "1"]
[White "Majdan, Joanna"]
[Black "Lach, Aleksandra"]
[Result "1/2-1/2"]
[ECO "B53"]
[WhiteElo "2371"]
[BlackElo "2209"]
[Annotator "NA"]
[PlyCount "121"]
[EventDate "2018.06.08"]
[EventType "team-tourn"]
[EventCountry "POL"]
[SourceTitle "playchess.com"]
[Source "ChessBase"]
[SourceQuality "1"]
[TimeControl "40/5400+30:1800+30"]

1. e4 {[%emt 0:00:00]} c5 {[%emt 0:00:27]} 2. Nf3 {[%emt 0:00:00]} d6 {[%emt 0:00:21]} 3. d4 {[%emt 0:00:00]} cxd4 {[%emt 0:00:22]} 4. Qxd4 {[%emt 0:00:00]} a6 {[%emt 0:00:34]} 5. c4 {[%emt 0:01:39]} Nc6 {[%emt 0:04:03]} 6. Qe3 {[%emt 0:00:05]} Bg4 {[%emt 0:01:03]} 7. h3 {[%emt 0:04:59]} Bxf3 {[%emt 0:04:05]} 8. Qxf3 {[%emt 0:00:12]} g6 {[%emt 0:04:45]} 9. Qb3 {[%emt 0:04:46]} Rb8 {[%emt 0:05:38]} 10. Be3 {[%emt 0:01:07]} Bg7 {[%emt 0:12:05]} 11. Nc3 {[%emt 0:03:17]} Nd4 {[%emt 0:14:46]} 12. Qd1 {[%emt 0:00:34]} Ne6 {[%emt 0:02:52]} 13. Rc1 {[%emt 0:01:13]} Nf6 {[%emt 0:02:09]} 14. Be2 {[%emt 0:02:48]} O-O {[%emt 0:08:41]} 15. O-O {[%emt 0:06:31]} b5 {[%emt 0:02:25]} 16. cxb5 {[%emt 0:00:39]} axb5 {[%emt 0:00:13]} 17. b4 {[%emt 0:00:17]} Nc7 {[%emt 0:03:04]} 18. a4 {[%emt 0:04:36]} bxa4 {[%emt 0:04:46]} 19. Qxa4 {[%emt 0:00:12]} Nd7 {[%emt 0:00:29]} 20. Rfd1 {[%emt 0:02:36]} Rb7 {[%emt 0:07:40]} 21. Nd5 {[%emt 0:03:59]} Nxd5 {[%emt 0:01:43]} 22. exd5 {[%emt 0:00:18]} Qa8 {[%emt 0:01:57]} 23. Qb3 {[%emt 0:02:09]} Rfb8 {[%emt 0:03:54]} 24. b5 {[%emt 0:00:36]} Qa5 {[%emt 0:00:19]} 25. Rc6 {[%emt 0:02:42]} h6 {[%emt 0:01:43]} 26. Rdc1 {[%emt 0:02:24]} Kh7 {[%emt 0:00:49]} 27. Qc2 {[%emt 0:02:21]} Nb6 {[%emt 0:04:34]} 28. Qe4 {[%emt 0:02:35]} Qa4 {[%emt 0:04:51]} 29. Qf3 {[%emt 0:00:15]} f5 {[%emt 0:00:33]} 30. Bxb6 {[%emt 0:01:07]} Rxb6 {[%emt 0:00:04]} 31. Bd3 {[%emt 0:00:36]} Qd4 {[%emt 0:03:32]} 32. Rxb6 {[%emt 0:04:12]} Rxb6 {[%emt 0:00:29]} 33. g4 {[%emt 0:04:18]} fxg4 {[%emt 0:00:49]} 34. hxg4 {[%emt 0:00:05]} Bf6 {[%emt 0:00:09]} 35. Rc8 {[%emt 0:03:03]} Qe5 {[%emt 0:00:36]} 36. Qe3 {[%emt 0:20:52]} Rb7 {[%emt 0:00:25]} 37. Bc4 {[%emt 0:02:30]} Qd4 {[%emt 0:00:58]} 38. Qe6 {[%emt 0:01:53]} h5 {[%emt 0:00:12]} 39. gxh5 {[%emt 0:03:51]} gxh5 {[%emt 0:00:14]} 40. Qf7+ {[%emt 0:00:00]} Kh6 {[%emt 0:00:39]} 41. Be2 {[%emt 0:05:16]} Qa1+ {[%emt 0:13:53]} 42. Kg2 {[%emt 0:01:32]} Qe5 {[%emt 0:01:10]} 43. Rg8 {[%emt 0:04:48]} Bg7 {[%emt 0:01:08]} 44. Kh3 {[%emt 0:07:30]} Qc3+ {[%emt 0:09:30]} 45. Bf3 {[%emt 0:00:32]} Kh7 {[%emt 0:00:25]} 46. Re8 {[%emt 0:08:02]} Qe5 {[%emt 0:04:32]} 47. Bd1 {[%emt 0:05:36]} Rc7 {[%emt 0:02:35]} 48. b6 {[%emt 0:07:01]} Rc3+ {[%emt 0:00:45]} 49. Bf3 {[%emt 0:00:20]} Qg5 {[%emt 0:01:12]} 50. Qg8+ {[%emt 0:00:17]} Kh6 {[%emt 0:00:35]} 51. Qe6+ {[%emt 0:00:04]} Qf6 {[%emt 0:00:39]} 52. Qxf6+ {[%emt 0:00:32]} Bxf6 {[%emt 0:00:01]} 53. b7 {[%emt 0:00:19]} Rxf3+ {[%emt 0:00:01]} 54. Kg2 {[%emt 0:00:04]} Rb3 {[%emt 0:00:14]} 55. b8=Q {[%emt 0:00:04]} Rxb8 {[%emt 0:00:02]} 56. Rxb8 {[%emt 0:00:05]} Kg5 {[%emt 0:00:06]} 57. Rb3 {[%emt 0:01:23]} Bd4 {[%emt 0:01:41]} 58. Rb4 {[%emt 0:00:23]} Be5 {[%emt 0:00:37]} 59. Kf3 {[%emt 0:00:04]} h4 {[%emt 0:00:41]} 60. Rg4+ {[%emt 0:00:49]} Kh5 {[%emt 0:00:11]} 61. Rg1 {[%emt 0:02:08]} 1/2-1/2

[Event "POL-chT Ekstraliga 2018"]
[Site "Gorzow"]
[Date "2018.06.08"]
[Round "1"]
[White "Flis, Jacek"]
[Black "Wcislo, Damian"]
[Result "1-0"]
[ECO "B30"]
[WhiteElo "2242"]
[BlackElo "2399"]
[Annotator "NA"]
[PlyCount "61"]
[EventDate "2018.06.08"]
[EventType "team-tourn"]
[EventCountry "POL"]
[SourceTitle "playchess.com"]
[Source "ChessBase"]
[SourceQuality "1"]
[TimeControl "40/5400+30:1800+30"]

1. e4 {[%emt 0:00:00]} c5 {[%emt 0:00:05]} 2. Nf3 {[%emt 0:00:00]} Nc6 {[%emt 0:00:06]} 3. Bb5 {[%emt 0:00:08]} e6 {[%emt 0:00:06]} 4. O-O {[%emt 0:00:28]} Nge7 {[%emt 0:00:11]} 5. b3 {[%emt 0:01:11]} a6 {[%emt 0:01:53]} 6. Bxc6 {[%emt 0:01:01]} Nxc6 {[%emt 0:00:44]} 7. Bb2 {[%emt 0:00:16]} d6 {[%emt 0:02:23]} 8. d4 {[%emt 0:03:12]} cxd4 {[%emt 0:00:38]} 9. Nxd4 {[%emt 0:01:10]} Nxd4 {[%emt 0:02:20]} 10. Qxd4 {[%emt 0:01:28]} e5 {[%emt 0:07:03]} 11. Qd3 {[%emt 0:03:09]} Be7 {[%emt 0:00:39]} 12. c4 {[%emt 0:10:21]} O-O {[%emt 0:00:33]} 13. Nc3 {[%emt 0:01:20]} Rb8 {[%emt 0:05:26]} 14. Nd5 {[%emt 0:02:25]} b5 {[%emt 0:28:38]} 15. c5 {[%emt 0:05:31]} Bg5 {[%emt 0:15:37]} 16. Rad1 {[%emt 0:28:26]} Bb7 {[%emt 0:08:25]} 17. Qg3 {[%emt 0:03:36]} f6 {[%emt 0:01:40]} 18. f4 {[%emt 0:12:40]} exf4 {[%emt 0:00:08]} 19. Nxf4 {[%emt 0:00:38]} Re8 {[%emt 0:11:24]} 20. Rxd6 {[%emt 0:01:44]} Qc8 {[%emt 0:00:51]} 21. b4 {[%emt 0:03:49]} Bxe4 {[%emt 0:05:19]} 22. h4 {[%emt 0:02:06]} Bxf4 {[%emt 0:01:08]} 23. Rxf4 {[%emt 0:00:12]} Bg6 {[%emt 0:01:21]} 24. h5 {[%emt 0:04:30]} Bxh5 {[%emt 0:00:13]} 25. Rdxf6 {[%emt 0:02:42]} Re7 {[%emt 0:02:42]} 26. Bd4 {[%emt 0:07:42]} Bg6 {[%emt 0:00:19]} 27. Qb3+ {[%emt 0:00:21]} Kh8 {[%emt 0:00:16]} 28. Rxg6 {[%emt 0:00:12]} Qc7 {[%emt 0:00:59]} 29. Rd6 {[%emt 0:01:09]} Re1+ {[%emt 0:00:17]} 30. Kh2 {[%emt 0:00:24]} Qe7 {[%emt 0:00:08]} 31. Qg3 {[%emt 0:00:21]} 1-0

[Event "POL-chT Ekstraliga 2018"]
[Site "Gorzow"]
[Date "2018.06.08"]
[Round "1"]
[White "Leks, Maria"]
[Black "Przezdziecka, Ewa"]
[Result "0-1"]
[ECO "B30"]
[WhiteElo "2145"]
[BlackElo "2165"]
[Annotator "NA"]
[PlyCount "84"]
[EventDate "2018.06.08"]
[EventType "team-tourn"]
[EventCountry "POL"]
[SourceTitle "playchess.com"]
[Source "ChessBase"]
[SourceQuality "1"]
[TimeControl "40/5400+30:1800+30"]

1. e4 {[%emt 0:00:44]} c5 {[%emt 0:00:10]} 2. Nf3 {[%emt 0:00:15]} Nc6 {[%emt 0:00:16]} 3. Bb5 {[%emt 0:00:17]} d6 {[%emt 0:00:54]} 4. O-O {[%emt 0:00:12]} Bd7 {[%emt 0:00:08]} 5. Re1 {[%emt 0:00:13]} a6 {[%emt 0:03:01]} 6. Bf1 {[%emt 0:00:21]} Bg4 {[%emt 0:01:01]} 7. c3 {[%emt 0:01:18]} Nf6 {[%emt 0:02:23]} 8. h3 {[%emt 0:02:50]} Bh5 {[%emt 0:01:54]} 9. g4 {[%emt 0:03:04]} Bg6 {[%emt 0:00:42]} 10. d3 {[%emt 0:00:05]} e5 {[%emt 0:06:49]} 11. Bg2 {[%emt 0:21:12]} Be7 {[%emt 0:04:51]} 12. Nh4 {[%emt 0:02:57]} Nd7 {[%emt 0:06:21]} 13. Nf5 {[%emt 0:03:24]} Bxf5 {[%emt 0:10:13]} 14. exf5 {[%emt 0:00:38]} h5 {[%emt 0:06:03]} 15. Nd2 {[%emt 0:09:19]} hxg4 {[%emt 0:06:00]} 16. hxg4 {[%emt 0:00:42]} Qc7 {[%emt 0:06:04]} 17. a3 {[%emt 0:10:41]} g6 {[%emt 0:14:09]} 18. fxg6 {[%emt 0:11:52]} fxg6 {[%emt 0:00:33]} 19. Nf1 {[%emt 0:08:02]} O-O-O {[%emt 0:03:46]} 20. b4 {[%emt 0:02:15]} Nf6 {[%emt 0:12:31]} 21. g5 {[%emt 0:08:38]} Nh5 {[%emt 0:03:30]} 22. a4 {[%emt 0:00:12]} cxb4 {[%emt 0:04:10]} 23. cxb4 {[%emt 0:00:05]} Nd4 {[%emt 0:01:31]} 24. Be3 {[%emt 0:01:13]} Kb8 {[%emt 0:00:56]} 25. b5 {[%emt 0:05:14]} a5 {[%emt 0:01:40]} 26. b6 {[%emt 0:03:17]} Qd7 {[%emt 0:02:55]} 27. Bxd4 {[%emt 0:00:05]} Nf4 {[%emt 0:00:49]} 28. Qf3 {[%emt 0:04:10]} Nxg2 {[%emt 0:00:22]} 29. Qxg2 {[%emt 0:00:16]} exd4 {[%emt 0:00:07]} 30. Ng3 {[%emt 0:00:52]} d5 {[%emt 0:00:59]} 31. Rac1 {[%emt 0:00:30]} Rc8 {[%emt 0:00:17]} 32. Rxc8+ {[%emt 0:00:31]} Rxc8 {[%emt 0:00:02]} 33. Ne2 {[%emt 0:00:10]} Qxa4 {[%emt 0:01:16]} 34. Qg3+ {[%emt 0:00:10]} Ka8 {[%emt 0:00:17]} 35. Qg4 {[%emt 0:00:10]} Rf8 {[%emt 0:00:35]} 36. Qxd4 {[%emt 0:01:13]} Qxd4 {[%emt 0:00:14]} 37. Nxd4 {[%emt 0:00:04]} Bc5 {[%emt 0:00:32]} 38. Ne6 {[%emt 0:01:06]} Bxf2+ {[%emt 0:00:02]} 39. Kf1 {[%emt 0:00:12]} Bxe1+ {[%emt 0:00:23]} 40. Nxf8 {[%emt 0:00:00]} a4 {[%emt 0:01:24]} 41. Nxg6 {[%emt 0:07:47]} a3 {[%emt 0:02:17]} 42. Ne5 {[%emt 0:00:05]} Bc3 {[%emt 0:02:26]} 0-1

[Event "POL-chT Ekstraliga 2018"]
[Site "Gorzow"]
[Date "2018.06.09"]
[Round "2"]
[White "Kulon, Klaudia"]
[Black "Majdan, Joanna"]
[Result "1/2-1/2"]
[ECO "B20"]
[WhiteElo "2356"]
[BlackElo "2371"]
[Annotator "NA"]
[PlyCount "60"]
[EventDate "2018.06.08"]
[EventType "team-tourn"]
[EventCountry "POL"]
[SourceTitle "playchess.com"]
[Source "ChessBase"]
[SourceQuality "1"]
[TimeControl "40/5400+30:1800+30"]

1. e4 {[%emt 0:00:00]} c5 {[%emt 0:00:04]} 2. Be2 {[%emt 0:00:00]} Nc6 {[%emt 0:02:22]} 3. f4 {[%emt 0:00:00]} Nf6 {[%emt 0:04:18]} 4. d3 {[%emt 0:01:15]} d6 {[%emt 0:00:24]} 5. Nf3 {[%emt 0:00:05]} Nd4 {[%emt 0:00:52]} 6. c3 {[%emt 0:00:51]} Nxe2 {[%emt 0:01:08]} 7. Qxe2 {[%emt 0:00:05]} g6 {[%emt 0:01:31]} 8. O-O {[%emt 0:01:08]} Bg7 {[%emt 0:00:02]} 9. Kh1 {[%emt 0:10:03]} O-O {[%emt 0:02:56]} 10. Be3 {[%emt 0:00:16]} c4 {[%emt 0:01:49]} 11. dxc4 {[%emt 0:05:38]} Nxe4 {[%emt 0:00:14]} 12. Bxa7 {[%emt 0:01:58]} Nxc3 {[%emt 0:05:02]} 13. Nxc3 {[%emt 0:02:54]} Rxa7 14. Qe3 {[%emt 0:00:30]} Ra6 {[%emt 0:02:17]} 15. Rfe1 {[%emt 0:00:27]} Re8 {[%emt 0:00:58]} 16. b3 {[%emt 0:01:31]} Bd7 {[%emt 0:08:11]} 17. Re2 {[%emt 0:09:33]} ({White should play} 17. a4 $15) 17... b5 {[%emt 0:01:47]} 18. cxb5 {[%emt 0:00:40]} Bxb5 {[%emt 0:00:05]} 19. Rc2 {[%emt 0:00:50]} Bd7 {[%emt 0:04:35]} 20. Rac1 {[%emt 0:02:48]} Qa8 {[%emt 0:01:09]} 21. a4 {[%emt 0:04:04]} Qb7 {[%emt 0:04:10]} 22. Nd2 {[%emt 0:26:41]} Bc6 {[%emt 0:05:29]} 23. Qf2 {[%emt 0:01:27]} e5 {[%emt 0:06:48]} 24. fxe5 {[%emt 0:01:44]} Rxe5 {[%emt 0:01:06]} 25. Nb5 $1 {[%emt 0:04:21]} Rf5 {[%emt 0:02:41]} ({Günstiger ist} 25... Bxb5 $17 26. axb5 Qxb5) 26. Qe2 $1 {[%emt 0:00:14]} Re5 {[%emt 0:00:27]} (26... Bxb5 $17 27. axb5 Ra8) 27. Qf2 {[%emt 0:00:05]} Rf5 {[%emt 0:00:03]} 28. Qe2 {[%emt 0:03:06]} Re5 $11 {[%emt 0:01:22]} 29. Qf2 {[%emt 0:00:24]} Rf5 {[%emt 0:00:05]} 30. Qe2 {[%emt 0:00:02]} Re5 1/2-1/2

[Event "POL-chT Ekstraliga 2018"]
[Site "Gorzow"]
[Date "2018.06.09"]
[Round "2"]
[White "Leks, Maria"]
[Black "Sliwicka, Alicja"]
[Result "0-1"]
[ECO "A45"]
[WhiteElo "2145"]
[BlackElo "2274"]
[Annotator "NA"]
[PlyCount "124"]
[EventDate "2018.06.08"]
[EventType "team-tourn"]
[EventCountry "POL"]
[SourceTitle "playchess.com"]
[Source "ChessBase"]
[SourceQuality "1"]
[TimeControl "40/5400+30:1800+30"]

1. d4 {[%emt 0:00:00]} Nf6 {[%emt 0:00:20]} 2. Bf4 {[%emt 0:00:00]} g6 {[%emt 0:00:29]} 3. e3 {[%emt 0:00:14]} Bg7 {[%emt 0:00:13]} 4. Nf3 {[%emt 0:00:16]} O-O {[%emt 0:00:44]} 5. Be2 {[%emt 0:00:29]} d5 {[%emt 0:01:32]} 6. Nbd2 {[%emt 0:00:30]} c5 {[%emt 0:01:21]} 7. c3 {[%emt 0:00:09]} Nc6 {[%emt 0:00:58]} 8. O-O {[%emt 0:00:41]} Qb6 {[%emt 0:01:16]} 9. Qb3 {[%emt 0:00:36]} c4 {[%emt 0:01:10] D02: 1 d4 d5 2 Nf3 sidelines, including 2...Nf6 3 g3 and 2...Nf6 3 Bf4} 10. Qa3 {[%emt 0:00:20]} Nh5 {[%emt 0:18:38]} (10... Bf5 11. b3 cxb3 12. axb3 Nh5 13. Bg5 f6 14. Bh4 g5 15. Bg3 Nxg3 16. hxg3 {½-½ (68) Dreev,A (2698)-Shipov,S (2588) chessassistantclub.com INT 2004}) 11. Bg5 {[%emt 0:00:16]} Re8 {[%emt 0:04:19]} 12. b3 {[%emt 0:01:10]} cxb3 {[%emt 0:01:24]} 13. axb3 {[%emt 0:00:05]} h6 {[%emt 0:06:20]} 14. Bh4 {[%emt 0:00:12]} g5 {[%emt 0:01:23] [#]} 15. Bg3 $146 {[%emt 0:04:55]} ({Predecessor:} 15. Ne1 Nf6 16. Bg3 e5 17. Nef3 {½-½ (34) Tu,H (2506)-Causo,D (2367) Subic Bay 2009}) 15... Nxg3 {[%emt 0:00:10]} 16. hxg3 {[%emt 0:00:05]} Bg4 {[%emt 0:04:03]} 17. c4 {[%emt 0:21:29]} dxc4 {[%emt 0:10:37]} 18. bxc4 {[%emt 0:00:33]} e5 {[%emt 0:02:06]} 19. Rab1 {[%emt 0:01:55]} Qa5 {[%emt 0:04:43]} 20. Qxa5 {[%emt 0:08:03]} Nxa5 {[%emt 0:00:07]} 21. d5 {[%emt 0:26:13]} Rac8 {[%emt 0:05:05]} 22. e4 {[%emt 0:07:01]} Bf8 {[%emt 0:02:07]} 23. Rfc1 {[%emt 0:04:10]} b6 {[%emt 0:02:56]} 24. Nf1 {[%emt 0:04:02]} Bc5 {[%emt 0:01:15]} 25. N1h2 {[%emt 0:03:35]} Bd7 {[%emt 0:01:47]} 26. Nd2 {[%emt 0:02:53]} Kg7 {[%emt 0:00:34]} 27. Bg4 {[%emt 0:00:44]} Bxg4 {[%emt 0:00:36]} 28. Nxg4 {[%emt 0:00:04]} h5 {[%emt 0:01:29]} 29. Ne3 {[%emt 0:00:47]} Bxe3 {[%emt 0:00:24]} 30. fxe3 {[%emt 0:00:04]} Rc5 {[%emt 0:02:00]} 31. Rb5 {[%emt 0:11:27]} Rec8 {[%emt 0:00:48]} 32. Rxc5 {[%emt 0:00:05]} Rxc5 {[%emt 0:00:07]} 33. Ra1 {[%emt 0:00:10]} Kf6 {[%emt 0:05:26]} 34. Ra4 {[%emt 0:00:24]} Rc8 {[%emt 0:01:44]} 35. Kf2 {[%emt 0:00:33]} Ke7 {[%emt 0:02:20]} 36. Ke2 {[%emt 0:00:03]} Kd6 {[%emt 0:01:36]} 37. Kd3 {[%emt 0:00:22]} Ra8 {[%emt 0:00:54]} 38. Ra1 {[%emt 0:01:53]} Nb7 {[%emt 0:03:06]} 39. Rf1 {[%emt 0:00:15]} Nc5+ {[%emt 0:00:46]} 40. Kc3 {[%emt 0:00:00]} Ke7 {[%emt 0:00:45]} 41. Rh1 {[%emt 0:04:16]} Rh8 {[%emt 0:00:26]} 42. Ra1 {[%emt 0:05:06]} a5 {[%emt 0:00:41]} 43. Rb1 {[%emt 0:00:15]} g4 {[%emt 0:04:43]} 44. Kc2 {[%emt 0:11:23]} Rh6 {[%emt 0:00:14]} 45. Rh1 {[%emt 0:00:48]} Kf6 {[%emt 0:04:43]} 46. Rf1+ {[%emt 0:00:40]} Kg6 {[%emt 0:00:42]} 47. Rb1 {[%emt 0:01:43]} Kg5 {[%emt 0:01:15]} 48. Rf1 {[%emt 0:07:32]} Rf6 {[%emt 0:00:48]} 49. Rxf6 {[%emt 0:00:06]} Kxf6 {[%emt 0:00:05]} 50. Kb2 {[%emt 0:02:52]} Kg5 {[%emt 0:00:22]} 51. Nb3 {[%emt 0:02:11]} Nxe4 {[%emt 0:01:01]} 52. c5 {[%emt 0:00:04]} Nxc5 {[%emt 0:05:50]} 53. Nd2 {[%emt 0:00:35]} b5 {[%emt 0:00:58]} 54. Kc3 {[%emt 0:00:49]} Kf6 {[%emt 0:00:17]} 55. e4 {[%emt 0:01:50]} Ke7 {[%emt 0:00:15]} 56. Kc2 {[%emt 0:00:23]} Kd6 {[%emt 0:00:14]} 57. Kb2 {[%emt 0:00:35] [#]} f5 $19 {[%emt 0:00:41]} 58. exf5 {[%emt 0:00:04]} Kxd5 {[%emt 0:00:05]} 59. Kc3 {[%emt 0:00:22]} b4+ {[%emt 0:01:55]} 60. Kb2 {[%emt 0:00:26]} e4 {[%emt 0:00:41]} 61. Nf1 {[%emt 0:00:14]} Kd4 {[%emt 0:02:35]} 62. f6 {[%emt 0:00:26]} e3 {[%emt 0:00:26]} 0-1